Cogmind - Beta 16 @@@ ROGUE MODE // 2026.01.05 @ 16:32:34 Player: The Overplayer Result: Destroyed by Y-64 Sentinel with KE Penetrator Performance ------------- Evolutions (6) 3000 Regions Visited (15) 3000 Robots Destroyed (107) 535 Value Destroyed (4144) 4144 Prototype IDs (37) 740 Alien Tech Used (1) 200 Bonus (1179) 1179 TOTAL SCORE: 12798 Bonus ------- Follower Combat Kills 379 Entered DSFs 500 Aligned with FarCom 300 Cogmind --------- Core Integrity 0/1150 Matter 235/300 Energy 100/100 System Corruption 39% Temperature Cool (9) Movement Core (50) Location -4/Factory Parts ------- > --- POWER (3) -------- (None) > --- PROPULSION (4) --- (None) > --- UTILITY (8) ------ Authchip [Armor] > --- WEAPON (4) ------- (None) > --- INVENTORY (5) ---- Improved Signal Interpreter Energy Filter Advanced Hacking Suite System Shield Improved Plasma Cutter Peak State ------------ > --- POWER ------------ Reinforced Fission Core Light Antimatter Reactor Fission-Momentum Core > --- PROPULSION ------- Myomer-Armored Exoskeleton > --- UTILITY ---------- Armored Scrap Engine Power Amplifier Improved Heat Sink High-capacity Storage Unit Advanced ECM Suite Cloaking Device Improved Shield Generator > --- WEAPON ----------- Plasma Rifle Coil Gun Thermal Neutralizer Construct/G Power Sword > --- INVENTORY -------- Improved Heat Sink Improved Coolant Injector Improved Sensor Array Improved Signal Interpreter Energy Filter Improved Particle Charger Improved Transmission Jammer Improved Shock Absorption System Force Field Advanced Hacking Suite System Shield Authchip [Propulsion] Authchip [Armor] Authchip [Weapon] Remote Datajack Improved Plasma Cutter [Rating: 117] Favorites ----------- Power Constructs Engine Deuterium Engine Power Core Constructs Reactor Light Antimatter Reactor Propulsion Armored Wheel Leg Constructs Wheel Armored Wheel Utility High-capacity Storage Unit Device Armored Scrap Engine Storage High-capacity Storage Unit Processor Target Analyzer Hackware Authchip [Armor] Protection Power Shielding Weapon Constructs Energy Gun Advanced Beam Rifle Ballistic Gun Constructs Ballistic Cannon Constructs Launcher Smartbomb Launcher Special Weapon Improved Plasma Cutter Slashing Weapon Power Sword Build | -11 -10 -10 -9 -9 -9 -8 -8 -8 -8 -6 -6 -5 -5 -5 -4 ------- Run | Yrd Mat Min Mat Min Exi Min Mat Sto Rec Fac DSF Fac Upp Upp Fac Slots Evolved 12 | . . . 2 . . . 2 . . 4 . 2 . . 2 Power 2 | . . . . . . . . . . . . 1 . . 1 Propulsion 2 | . . . 1 . . . . . . 1 . . . . . Utility 6 | . . . 1 . . . 2 . . 1 . 1 . . 1 Weapon 2 | . . . . . . . . . . 2 . . . . . Parts Attached 105 | 8 3 5 18 . 3 . 6 13 5 1 . 17 2 . 24 Power 16 | 1 1 1 2 . . . 1 1 1 . . 3 . . 5 Engine 11 | 1 1 . 2 . . . 1 1 1 . . 2 . . 2 Core 3 | . . 1 . . . . . . . . . 1 . . 1 Reactor 2 | . . . . . . . . . . . . . . . 2 Propulsion 16 | 2 1 2 8 . . . . 1 1 . . . . . 1 Treads . | . . . . . . . . . . . . . . . . Leg 12 | 2 1 2 5 . . . . . 1 . . . . . 1 Wheel 4 | . . . 3 . . . . 1 . . . . . . . Hover . | . . . . . . . . . . . . . . . . Flight . | . . . . . . . . . . . . . . . . Utility 43 | 3 . . 5 . 3 . 3 . 3 1 . 14 . . 11 Device 21 | 2 . . . . . . 1 . 3 . . 10 . . 5 Storage 4 | 1 . . 1 . 2 . . . . . . . . . . Processor 4 | . . . . . . . 1 . . 1 . 2 . . . Hackware 4 | . . . 1 . . . . . . . . . . . 3 Protection 10 | . . . 3 . 1 . 1 . . . . 2 . . 3 Artifact . | . . . . . . . . . . . . . . . . Weapon 30 | 2 1 2 3 . . . 2 11 . . . . 2 . 7 Energy Gun 13 | 2 . . 1 . . . 1 8 . . . . . . 1 Energy Cannon . | . . . . . . . . . . . . . . . . Ballistic Gun 13 | . 1 2 2 . . . 1 3 . . . . 1 . 3 Ballistic Cannon . | . . . . . . . . . . . . . . . . Launcher 1 | . . . . . . . . . . . . . . . 1 Special Weapon 1 | . . . . . . . . . . . . . 1 . . Impact Weapon . | . . . . . . . . . . . . . . . . Slashing Weapon 2 | . . . . . . . . . . . . . . . 2 Piercing Weapon . | . . . . . . . . . . . . . . . . Special Melee Weapon . | . . . . . . . . . . . . . . . . Unidentified Prototypes 8 | . . . . . . . 1 5 1 . . . 1 . . Corrupted Parts 3 | . . . . . . . . . . . . . . . 3 System Corruption 7 | . . . . . . . . . . . . . . . 7 Parts Lost 59 | . . 1 3 . . . 3 1 9 . 4 6 . . 32 Power 7 | . . . . . . . . . 1 . 1 . . . 5 Propulsion 9 | . . . 1 . . . 1 . 3 . . . . . 4 Utility 20 | . . . 1 . . . 1 1 3 . . 3 . . 11 Weapon 23 | . . 1 1 . . . 1 . 2 . 3 3 . . 12 Highest Loss Streak 12 | . . 1 2 . . . 2 1 6 . 3 3 . . 12 To Critical Strikes 2 | . . . . . . . . . . . . . . . 2 Average Backups 12 | 2 7 7 8 10 9 10 15 18 9 6 8 12 17 17 15 Power . | 1 1 1 1 1 1 1 1 1 . . . . . . . Propulsion . | . . 1 . 1 1 1 1 2 1 . . . . . . Utility 8 | . 4 4 4 5 4 5 7 8 4 6 7 10 15 15 13 Weapon 1 | . 1 1 2 3 2 3 5 6 2 . . . . . . Tool/Special . | . . . . . . . . . . . . . . . . Unused Backups 42 | 2 3 2 2 . 1 . . 12 12 . . . . . 8 Power 4 | . 1 . 1 . . . . 1 1 . . . . . . Propulsion 7 | 2 1 . . . . . . 1 3 . . . . . . Utility 20 | . 1 2 1 . . . . 6 3 . . . . . 7 Weapon 10 | . . . . . 1 . . 4 5 . . . . . . Tool/Special 1 | . . . . . . . . . . . . . . . 1 Average Slot Usage (%) 76 | . 100 99 97 100 99 100 95 91 66 50 57 65 64 64 62 Engine 5 | . 14 8 9 11 11 11 9 9 3 . . 4 5 5 2 Core 2 | . . 5 1 . . . . . 4 6 6 1 5 5 2 Leg 5 | . 28 28 20 . . . . . . . . 1 . . 2 Wheel 7 | . . . 11 33 33 33 25 23 7 . . . . . . Hover 1 | . . . . . . . . . 4 . . 3 5 5 . Device 14 | . 14 14 11 11 10 11 10 7 10 13 13 20 17 17 21 Storage 7 | . 14 14 11 11 11 11 9 9 9 6 6 5 5 5 4 Processor 2 | . . . . . . . 8 9 2 3 6 4 . . . Protection 6 | . . . 9 11 10 11 16 17 5 . . 1 5 5 3 Energy Gun 7 | . 22 12 . 11 11 11 7 14 10 6 6 4 3 . 4 Energy Cannon 2 | . . . . . . . . . 5 6 10 9 2 5 . Ballistic Gun 7 | . 5 15 21 11 11 11 8 1 . . . 3 6 11 8 Peak Build Rating 117 | 9 8 12 22 17 19 20 34 37 51 51 62 109 108 108 117 Average Rating 55 | 6 7 8 18 17 18 19 30 33 38 48 54 94 104 106 95 On Entrance 38 | . 7 8 12 17 17 19 20 28 34 45 51 51 106 108 100 Avg Prop Armor Cover (%) 33 | . . . . . . . . . . . . . . . 33 Naked Turns . | . . . . . . . . . . . . . . . . Heaviest Build 112 | 12 13 17 27 27 57 57 62 61 57 55 69 97 98 96 112 Greatest Support 125 | 20 20 20 45 36 36 36 36 36 51 51 51 76 71 109 125 Greatest Overweight (x) 18 | . . . 5 . 1 1 2 2 18 1 1 1 1 1 1 Average Overweight (x) . | . . . . . . 1 1 1 2 1 . . 1 . . Largest Inventory Capacity 35 | 8 8 8 10 10 35 20 20 20 20 20 20 20 20 20 20 Average Capacity 17 | 7 8 8 8 10 11 20 20 20 20 20 20 20 20 20 18 Most Carried 20 | 6 8 8 10 10 10 15 19 20 20 8 8 18 18 18 19 Average Carried 12 | 2 7 7 8 10 9 11 16 19 9 6 8 12 16 17 15 Final Capacity 20 | 8 8 8 10 10 20 20 20 20 20 20 20 20 20 20 5 Final Carried 20 | 6 8 8 10 10 10 15 19 20 6 8 8 18 17 18 5 Scrap Engine Consumption 195 | . . . . . . . . . 37 10 36 53 10 6 43 Constructs Created 16 | . . . . . . . . . 4 . 2 7 1 . 2 Constructs Modified 45 | . . . . . . . . . 5 1 1 16 7 2 13 Class Distribution -------------------- 35% | Construct 25% | Mutant 13% | Scavenger-Mutant 9% | Commander-Mutant 9% | Scavenger-Skirmisher 3% | Skirmisher Dominant Class ---------------- Mutant | -10/Materials Mutant | -10/Mines Scavenger-Mutant | -9/Materials Scavenger-Mutant | -9/Mines Scavenger-Mutant | -9/Exiles Mutant | -8/Mines Mutant | -8/Materials Commander-Mutant | -8/Storage Construct | -8/Recycling Construct | -6/Factory Construct | -6/DSF Construct | -5/Factory Construct | -5/Upper Caves Construct | -5/Upper Caves Scavenger-Skirmisher | -4/Factory Resources | -11 -10 -10 -9 -9 -9 -8 -8 -8 -8 -6 -6 -5 -5 -5 -4 ----------- Run | Yrd Mat Min Mat Min Exi Min Mat Sto Rec Fac DSF Fac Upp Upp Fac Matter Collected 2668 | 312 54 101 495 . . 50 195 140 95 . 1 357 82 130 656 Remotely . | . . . . . . . . . . . . . . . . Salvage Created 4673 | 182 205 125 657 . . . 491 407 366 . . 613 108 299 1220 Parts 253 | 14 6 9 55 . . . 18 19 7 . . 39 6 12 68 Haulers Intercepted 5 | . . . 2 . . . . 3 . . . . . . . Recyclers Shooed 4 | . . . . . . . . . . . . . . . 4 Parts Field Recycled . | . . . . . . . . . . . . . . . . Retrieved Matter . | . . . . . . . . . . . . . . . . Parts Self-Destructed 9 | . . . . . . . . . . . . . 2 7 . Prevented 1 | . . . . . . . . . . . . . 1 . . Parts Restored . | . . . . . . . . . . . . . . . . Kills | -11 -10 -10 -9 -9 -9 -8 -8 -8 -8 -6 -6 -5 -5 -5 -4 ------- Run | Yrd Mat Min Mat Min Exi Min Mat Sto Rec Fac DSF Fac Upp Upp Fac Combat Hostiles Destroyed 84 | . 4 4 17 . . . 9 5 6 . . 12 4 4 19 Melee 1 | . . . . . . . . . . . . . . . 1 Guns 57 | . 2 4 17 . . . 9 4 4 . . 3 2 2 10 Cannons 17 | . . . . . . . . . 1 . . 7 2 2 5 AOE 4 | . . . . . . . . . . . . 1 . . 3 Classes Destroyed 17 | 3 2 1 2 . . . 1 . 1 . . 2 . 2 3 Worker 3 | 2 . . . . . . . 1 . . . . . . . Builder 5 | . . . . . . . . . . . . 2 . . 3 Tunneler 5 | 3 . . 1 . . . . . . . . 1 . . . Hauler 5 | . . . 2 . . . . 3 . . . . . . . Recycler 1 | 1 . . . . . . . . . . . . . . . Operator 1 | . . . . . . . . . . . . . . . 1 Watcher 3 | . 1 . 2 . . . . . . . . . . . . Swarmer 19 | . . 2 8 . . . . 1 . . . 4 4 . . Cutter 3 | . . . . . . . . . . . . . . . 3 Grunt 30 | . 4 2 5 . . . 7 2 1 . . 3 . 2 4 Brawler 2 | . . . . . . . . . . . . . . 1 1 Duelist 1 | . . . . . . . . . . . . . . . 1 Sentry 9 | . . . 4 . . . 1 2 2 . . . . . . Hunter 5 | . . . . . . . 1 . . . . 1 . . 3 Programmer 11 | . . . . . . . . . . . . 4 . . 7 Scrapper 3 | . . . . . . . . . 3 . . . . . . Mutant 1 | . . . . . . . . . . . . . . 1 . Best Kill Streak 7 | 4 2 2 7 . . . 2 2 2 . . 4 4 2 5 Combat Bots Only 6 | . 2 2 6 . . . 2 2 2 . . 4 4 2 4 Max Kills in Single Turn 2 | 1 1 1 2 . . . 1 2 1 . . 2 2 1 2 Gunslinging 1 | . . . 1 . . . . . . . . . . . 1 Exploded 2 | . . . . . . . . . . . . 1 . . 2 Melee 1 | . . . . . . . . . . . . . . . 1 Uniques/NPCs Destroyed . | . . . . . . . . . . . . . . . . Combat | -11 -10 -10 -9 -9 -9 -8 -8 -8 -8 -6 -6 -5 -5 -5 -4 -------- Run | Yrd Mat Min Mat Min Exi Min Mat Sto Rec Fac DSF Fac Upp Upp Fac Hostile Shots Fired 1146 | . 33 32 112 . . . 78 17 75 . 66 103 14 26 590 Missed 348 | . 11 10 34 . . . 28 3 9 . 18 20 4 9 202 Hits 798 | . 22 22 78 . . . 50 14 66 . 48 83 10 17 388 Melee 31 | . . . . . . . . . . . 2 . . 2 27 Projectile 767 | . 22 22 78 . . . 50 14 66 . 46 83 10 15 361 AOE 3 | . . . . . . . . . . . . . . . 3 Critical Strikes 56 | . 1 2 . . . . 2 . 4 . 4 6 . 2 35 Actively Blocked 1 | . . . . . . . . . . . . . . . 1 Part Disruptions 3 | . . . . . . . . . . . . 1 . . 2 Damage Taken 15320 | . 259 224 1007 . . . 833 186 1339 . 1152 1732 153 375 8060 Core 2215 | . 53 36 129 . . . 147 14 276 . 150 257 . . 1153 Absorbed by Shields 206 | . . . . . . . . . . . 73 54 . . 79 Redirected to Shielding 117 | . . . 4 . . . 14 . . . . . . . 99 Regen/Repaired (Parts) 2782 | . . . . . . . 96 170 166 25 63 601 315 39 1307 Core Remaining (%) 67 | 100 . 64 . . . 67 . . 20 . 82 . . 74 . Volleys Fired 338 | 13 21 17 59 . . . 31 24 32 . . 42 4 13 82 Largest 4 | 2 2 2 2 . . . 2 2 2 . . 4 3 3 3 Hottest 275 | 90 90 70 46 . . . 89 122 141 . . 275 191 177 181 Shots Fired 678 | 26 42 33 106 . . . 61 43 54 . . 83 12 32 186 Gun 582 | 26 42 33 106 . . . 61 43 44 . . 49 8 20 150 Cannon 94 | . . . . . . . . . 10 . . 34 4 12 34 Launcher 2 | . . . . . . . . . . . . . . . 2 Special . | . . . . . . . . . . . . . . . . Kinetic 329 | . 8 17 106 . . . 33 . 5 . . 21 4 20 115 Thermal 300 | 26 34 16 . . . . 28 43 49 . . 23 . 12 69 Explosive 2 | . . . . . . . . . . . . . . . 2 Electromagnetic 47 | . . . . . . . . . . . . 39 8 . . Robot Hit Streak 23 | 6 7 4 23 . . . 9 11 5 . . 9 2 7 10 Robot Miss Streak 3 | 3 3 3 3 . . . 3 2 3 . . 2 2 3 3 Penetration Max 1 | . . . . . . . 1 . . . . . . . 1 Secondary Targets 9 | . 1 . 2 . . . . . 1 . . . . . 5 Max Gunslinging Chain 1 | . 1 . 1 . . . . . 1 . . . . . 1 Shots Hit Robots 427 | 15 26 16 83 . . . 45 24 35 . . 52 4 21 106 Core Hits 171 | 7 8 6 31 . . . 18 8 9 . . 23 4 7 50 Critical Kills 2 | . . . . . . . 2 . . . . . . . . Critical Parts Destroyed 4 | . 1 . 1 . . . . . . . . 1 . . 1 Critical Strikes 30 | 1 3 2 1 . . . 7 4 3 . . 1 . . 8 Burn 22 | 1 2 2 . . . . 5 4 3 . . . . . 5 Destroy 6 | . 1 . 1 . . . 2 . . . . 1 . . 1 Sever 2 | . . . . . . . . . . . . . . . 2 Melee Attacks 10 | . . . . . . . . . . . . . . . 10 Impact . | . . . . . . . . . . . . . . . . Slashing 10 | . . . . . . . . . . . . . . . 10 Piercing . | . . . . . . . . . . . . . . . . Sneak Attacks . | . . . . . . . . . . . . . . . . Combat Hostiles . | . . . . . . . . . . . . . . . . Follow-up Attacks . | . . . . . . . . . . . . . . . . Damage Inflicted 10525 | 175 336 199 1351 . . . 883 533 669 . . 1580 210 747 3842 Guns 7494 | 175 333 199 1241 . . . 867 533 589 . . 622 110 356 2469 Cannons 2014 | . . . . . . . . . 80 . . 643 100 391 800 Explosions 737 | . . . 88 . . . . . . . . 252 . . 397 Melee 123 | . . . . . . . . . . . . . . . 123 Ramming 157 | . 3 . 22 . . . 16 . . . . 63 . . 53 Kinetic 4612 | . 92 100 1241 . . . 545 . 77 . . 330 19 356 1852 Thermal 4642 | 175 241 99 88 . . . 322 533 592 . . 784 . 391 1417 Explosive 397 | . . . . . . . . . . . . . . . 397 Electromagnetic 594 | . . . . . . . . . . . . 403 191 . . Impact . | . . . . . . . . . . . . . . . . Slashing 123 | . . . . . . . . . . . . . . . 123 Piercing . | . . . . . . . . . . . . . . . . Highest Corruption 39 | . . . 1 1 1 1 . . . . . 17 17 17 39 Average Corruption 9 | . . . 1 1 1 1 . . . . . 5 17 17 15 Corruption Purged . | . . . . . . . . . . . . . . . . Corruption Blocked . | . . . . . . . . . . . . . . . . Effects 119 | . . . 2 . 1 1 . . . . . 24 15 14 62 Message Errors 32 | . . . 1 . 1 1 . . . . . 7 5 2 15 Matter Fused 24 | . . . . . . . . . . . . 7 2 2 13 Heat Flow Errors 13 | . . . 1 . . . . . . . . 1 . 2 9 Energy Discharges 12 | . . . . . . . . . . . . 2 3 . 7 Parts Rejected 2 | . . . . . . . . . . . . . . 1 1 Parts Fused 2 | . . . . . . . . . . . . 1 . . 1 Data Loss (minor) 16 | . . . . . . . . . . . . 4 1 3 8 Data Loss (major) 8 | . . . . . . . . . . . . 2 4 1 1 Misfires 4 | . . . . . . . . . . . . . . 1 3 Alerts 1 | . . . . . . . . . . . . . . . 1 Misdirections 2 | . . . . . . . . . . . . . . . 2 Weapon Failures 3 | . . . . . . . . . . . . . . 2 1 Overload Shots . | . . . . . . . . . . . . . . . . Overflow Damage 251 | . . . 34 . . . . . . . . 169 . 5 43 Projectiles 15 | . . . . . . . . . . . . 10 . 5 . Explosions 212 | . . . 34 . . . . . . . . 135 . . 43 Melee 24 | . . . . . . . . . . . . 24 . . . Knockbacks 1 | . . . . . . . . . . . . . . . 1 Impact 1 | . . . . . . . . . . . . . . . 1 Kinetic . | . . . . . . . . . . . . . . . . Secondary . | . . . . . . . . . . . . . . . . Self-Inflicted Damage 357 | . . . 122 . . . 8 . . . . 151 . . 76 Shots 6 | . . . 1 . . . . . . . . 3 . . 2 Rammed 14 | . . . 3 . . . 2 . . . . 3 . . 6 Targets Rammed 17 | . 1 . 3 . . . 2 . . . . 3 . . 8 Kicked 2 | . 1 . . . . . . . . . . . . . 1 Crushed 1 | . . . . . . . . . . . . . . . 1 Highest Temperature 418 | 90 270 105 122 . . . 144 288 418 . . 411 210 332 238 Average Temperature 87 | 27 106 43 15 . . . 54 79 165 . . 134 95 110 53 Received Heat Transfer 2620 | . 165 78 246 . . . 396 54 801 . 276 207 . 135 262 Effects 11 | . . . . . . . . . 2 . . 6 . 3 . Shutdowns 2 | . . . . . . . . . 1 . . 1 . . . Energy Bleed 1 | . . . . . . . . . . . . 1 . . . Interference 4 | . . . . . . . . . 1 . . . . 3 . Matter Decay 1 | . . . . . . . . . . . . 1 . . . Damage (minor) 1 | . . . . . . . . . . . . 1 . . . Damage (major) 2 | . . . . . . . . . . . . 2 . . . Siege Activations . | . . . . . . . . . . . . . . . . Martial Activations . | . . . . . . . . . . . . . . . . Shielding Activations . | . . . . . . . . . . . . . . . . Robots Disrupted . | . . . . . . . . . . . . . . . . Combat Hostiles . | . . . . . . . . . . . . . . . . Robots Corrupted 2 | . . . . . . . . . . . . 2 . . . Combat Hostiles 1 | . . . . . . . . . . . . 1 . . . Parts Fried 7 | . . . . . . . . . . . . 6 1 . . Impact Corruptions 1 | . . . . . . . . . . . . 1 . . . Robots Melted 4 | . 2 . . . . . . 1 1 . . . . . . Combat Hostiles 4 | . 2 . . . . . . 1 1 . . . . . . Parts Melted 26 | 1 6 1 . . . . 2 3 13 . . . . . . Heat Transferred 8124 | 533 816 444 50 . . . 1036 1295 1237 . . 400 . 222 2091 Parts Sabotaged . | . . . . . . . . . . . . . . . . Parts Stolen . | . . . . . . . . . . . . . . . . Parts Stripped . | . . . . . . . . . . . . . . . . Power Chain Reactions 1 | . . . . . . . . . . . . 1 . . . Alert | -11 -10 -10 -9 -9 -9 -8 -8 -8 -8 -6 -6 -5 -5 -5 -4 ------- Run | Yrd Mat Min Mat Min Exi Min Mat Sto Rec Fac DSF Fac Upp Upp Fac Maximum Alert Level 1 | . . . 1 . . . . 1 . . . . . . 1 Low Security (%) 85 | 100 100 100 34 100 . 100 100 68 100 100 100 100 . . 71 Level 1 14 | . . . 65 . . . . 31 . . . . . . 28 Level 2 . | . . . . . . . . . . . . . . . . Level 3 . | . . . . . . . . . . . . . . . . Level 4 . | . . . . . . . . . . . . . . . . Level 5 . | . . . . . . . . . . . . . . . . High Security . | . . . . . . . . . . . . . . . . Max Security . | . . . . . . . . . . . . . . . . Peak Influence 365 | 10 50 65 334 127 . . 86 365 130 5 15 189 . . 287 Initial 127 | . . 11 . 127 . . . 22 125 . 3 . . . . Average 82 | 1 8 13 204 110 . . 43 143 17 . 2 65 . . 152 Influence Increases 3720 | 30 107 115 771 . . . 337 663 167 5 15 433 90 85 902 Destroy 0b10 Robot/C 1960 | . 80 80 460 . . . 180 280 120 . . 240 80 60 380 Destroy 0b10 Robot/NC 125 | 30 5 . 30 . . . . 25 . . . 15 . . 20 Destroy Leader 418 | . 22 20 138 . . . 50 68 . . . 30 10 10 70 Allied During Kill 251 | . . . 28 . . . . 205 18 . . . . . . Successful Hack 93 | . . . 15 . . . 17 9 11 5 . 12 . . 24 Disable Machine 345 | . . . 60 . . . . 75 15 . . 45 . . 150 Destroy Structure 273 | . . . 25 . . . . 1 3 . . 76 . . 168 Lose Combat Pursuer 255 | . . 15 15 . . . 90 . . . 15 15 . 15 90 Influence Decreases 3640 | 30 77 145 443 241 87 . 283 395 489 . 20 310 206 92 822 Entered New Map 586 | . . 19 . 201 87 . . 32 197 . 2 . 46 2 . Time Decay 2372 | 30 77 126 353 40 . . 253 253 228 . . 260 160 90 502 Lost Part 468 | . . . 30 . . . 30 10 10 . 18 50 . . 320 Lost Ally 214 | . . . 60 . . . . 100 54 . . . . . . Squads Dispatched 21 | . 2 . 3 . . . 5 . . . 1 3 . . 7 Investigation 7 | . 1 . 2 . . . 3 . . . . . . . 1 Extermination 5 | . . . . . . . . . . . . 2 . . 3 Reinforcement 9 | . 1 . 1 . . . 2 . . . 1 1 . . 3 Assault . | . . . . . . . . . . . . . . . . Garrison . | . . . . . . . . . . . . . . . . Intercept . | . . . . . . . . . . . . . . . . Searches Triggered . | . . . . . . . . . . . . . . . . Construction Impeded 1 | . . . . . . . . . . . . 1 . . . Haulers Reinforced . | . . . . . . . . . . . . . . . . Active Scanning Responses . | . . . . . . . . . . . . . . . . Cargo Convoy Interrupts . | . . . . . . . . . . . . . . . . Stealth | -11 -10 -10 -9 -9 -9 -8 -8 -8 -8 -6 -6 -5 -5 -5 -4 --------- Run | Yrd Mat Min Mat Min Exi Min Mat Sto Rec Fac DSF Fac Upp Upp Fac Distress Signals 10 | . . . 5 . . . . 3 . . . . . . 2 Communications Jammed 2 | . . . . . . . . . . . . 2 . . . Distress Signals 2 | . . . . . . . . . . . . 2 . . . Times Spotted 158 | . 9 7 31 . . . 16 13 9 . 6 16 4 4 43 Peak Tracking Total 9 | . 3 3 6 . . . 5 5 4 . 4 3 4 3 9 Tactical Retreats 14 | . . 1 1 . . . 4 . . . 1 1 . 1 5 ECM-based Alert Blocks 3 | . . . . . . . . . . . . . . . 3 Traps | -11 -10 -10 -9 -9 -9 -8 -8 -8 -8 -6 -6 -5 -5 -5 -4 ------- Run | Yrd Mat Min Mat Min Exi Min Mat Sto Rec Fac DSF Fac Upp Upp Fac Traps Triggered 13 | . 1 . 2 . . . 1 2 . . 3 2 . . 2 Indirectly . | . . . . . . . . . . . . . . . . Trap Hack Attempts . | . . . . . . . . . . . . . . . . Triggered . | . . . . . . . . . . . . . . . . Disarmed . | . . . . . . . . . . . . . . . . Reprogrammed . | . . . . . . . . . . . . . . . . Reused . | . . . . . . . . . . . . . . . . Traps Extracted . | . . . . . . . . . . . . . . . . Installed . | . . . . . . . . . . . . . . . . Triggered . | . . . . . . . . . . . . . . . . Machines | -11 -10 -10 -9 -9 -9 -8 -8 -8 -8 -6 -6 -5 -5 -5 -4 ---------- Run | Yrd Mat Min Mat Min Exi Min Mat Sto Rec Fac DSF Fac Upp Upp Fac Machines Disabled 27 | . . . 4 . . . . 5 3 . . 3 1 1 10 Max in Single Turn 4 | . . . 3 . . . . 1 1 . . 3 1 1 4 Garrison Access 1 | . . . . . . . . 1 . . . . . . . Machines Repaired . | . . . . . . . . . . . . . . . . Machines Dismantled 1 | . . . . . . . . . . . . . 1 . . Machines Sabotaged . | . . . . . . . . . . . . . . . . Overloaded Fab Kills . | . . . . . . . . . . . . . . . . Hacking | -11 -10 -10 -9 -9 -9 -8 -8 -8 -8 -6 -6 -5 -5 -5 -4 --------- Run | Yrd Mat Min Mat Min Exi Min Mat Sto Rec Fac DSF Fac Upp Upp Fac Machines Accessed 40 | . 1 1 5 . 4 . 4 6 8 3 . 4 1 . 3 Terminals 22 | . 1 . 4 . . . 3 4 5 3 . 1 . . 1 Fabricators . | . . . . . . . . . . . . . . . . Repair Stations 3 | . . . . . . . 1 1 . . . . . . 1 Recycling Units 3 | . . . . . . . . . 1 . . 2 . . . Scanalyzers 2 | . . . 1 . . . . . . . . 1 . . . Garrison Access 2 | . . . . . . . . 1 . . . . . . 1 Total Hacks 110 | . 2 1 13 . 20 . 11 15 29 4 . 8 1 . 6 Successful 75 | . . 1 6 . 20 . 3 9 27 1 . 4 1 . 3 Failed 35 | . 2 . 7 . . . 8 6 2 3 . 4 . . 3 Catastrophic 6 | . 2 . 1 . . . 1 . . 1 . 1 . . . Database Lockouts . | . . . . . . . . . . . . . . . . Manual 24 | . 1 . 4 . 1 . 8 6 4 . . . . . . Terminals 43 | . 2 . 11 . . . 8 6 7 4 . 2 . . 3 Fabricators . | . . . . . . . . . . . . . . . . Repair Stations 12 | . . . . . . . 3 7 . . . . . . 2 Recycling Units 5 | . . . . . . . . . 1 . . 4 . . . Scanalyzers 4 | . . . 2 . . . . . . . . 2 . . . Garrison Access 3 | . . . . . . . . 2 . . . . . . 1 Terminal Hacks 56 | . . 1 3 . 20 . . 3 26 1 . 1 1 . . Record 39 | . . . . . 19 . . . 19 . . . 1 . . Open Door 2 | . . 1 . . . . . 1 . . . . . . . Open DSF 1 | . . . . . . . . . . 1 . . . . . Branch Access Points 1 | . . . 1 . . . . . . . . . . . . Terminal Index 2 | . . . . . . . . 1 1 . . . . . . Hauler Manifests 1 | . . . 1 . . . . . . . . . . . . Registered Components 1 | . . . 1 . . . . . . . . . . . . Zone Layout 6 | . . . . . . . . 1 4 . . 1 . . . Proto ID Catalog 1 | . . . . . 1 . . . . . . . . . . Release Object 2 | . . . . . . . . . 2 . . . . . . Fabricator Hacks . | . . . . . . . . . . . . . . . . Repair Station Hacks 9 | . . . . . . . 2 5 . . . . . . 2 Scan Component 5 | . . . . . . . 1 3 . . . . . . 1 Repair 4 | . . . . . . . 1 2 . . . . . . 1 Recycling Unit Hacks 3 | . . . . . . . . . 1 . . 2 . . . Retrieve Components 3 | . . . . . . . . . 1 . . 2 . . . Scanalyzer 3 | . . . 2 . . . . . . . . 1 . . . Retrieve Study 3 | . . . 2 . . . . . . . . 1 . . . Garrison Access Hacks 2 | . . . . . . . . 1 . . . . . . 1 Unlock Access 1 | . . . . . . . . . . . . . . . 1 Seal Access 1 | . . . . . . . . 1 . . . . . . . Unauthorized Hacks 2 | . . . 1 . . . 1 . . . . . . . . Terminals 2 | . . . 1 . . . 1 . . . . . . . . Botnet 2 | . . . 1 . . . 1 . . . . . . . . Fabricators . | . . . . . . . . . . . . . . . . Repair Stations . | . . . . . . . . . . . . . . . . Recycling Units . | . . . . . . . . . . . . . . . . Scanalyzers . | . . . . . . . . . . . . . . . . Garrison Access . | . . . . . . . . . . . . . . . . Data Cores Recovered 1 | . . . 1 . . . . . . . . . . . . Used . | . . . . . . . . . . . . . . . . Hacking Detections 29 | . 1 . 4 . . . 4 6 5 3 . 3 . . 3 Full Trace Events 6 | . 1 . 1 . . . 2 1 . . . . . . 1 Feedback Events . | . . . . . . . . . . . . . . . . Feedback Blocked . | . . . . . . . . . . . . . . . . Robot Schematics Acquired . | . . . . . . . . . . . . . . . . Robots Built . | . . . . . . . . . . . . . . . . Authchips . | . . . . . . . . . . . . . . . . Time . | . . . . . . . . . . . . . . . . Total Robot Build Rating . | . . . . . . . . . . . . . . . . Part Schematics Acquired . | . . . . . . . . . . . . . . . . Parts Built . | . . . . . . . . . . . . . . . . Authchips . | . . . . . . . . . . . . . . . . Time . | . . . . . . . . . . . . . . . . Total Part Build Rating . | . . . . . . . . . . . . . . . . Part Studies Acquired 2 | . . . 1 . . . . . . . . 1 . . . Parts Repaired 4 | . . . . . . . 1 2 . . . . . . 1 Time 130 | . . . . . . . 16 88 . . . . . . 26 Parts Recycled . | . . . . . . . . . . . . . . . . Recycled Matter . | . . . . . . . . . . . . . . . . Retrieved Matter . | . . . . . . . . . . . . . . . . Retrieved Components 11 | . . . . . . . . . 8 . . 3 . . . Parts Scanalyzed . | . . . . . . . . . . . . . . . . Part Schematics Acquired . | . . . . . . . . . . . . . . . . Parts Damaged . | . . . . . . . . . . . . . . . . Bothacking | -11 -10 -10 -9 -9 -9 -8 -8 -8 -8 -6 -6 -5 -5 -5 -4 ------------ Run | Yrd Mat Min Mat Min Exi Min Mat Sto Rec Fac DSF Fac Upp Upp Fac Used RIF Installer . | . . . . . . . . . . . . . . . . Robots Hacked . | . . . . . . . . . . . . . . . . Non-combat . | . . . . . . . . . . . . . . . . Combat . | . . . . . . . . . . . . . . . . Robot Hacks Applied . | . . . . . . . . . . . . . . . . Relay Couplers Released . | . . . . . . . . . . . . . . . . Fabnet Peak Effective % . | . . . . . . . . . . . . . . . . Robots Rewired 1 | . . . . . . . . 1 . . . . . . . Allies Hacked . | . . . . . . . . . . . . . . . . Hacks Repelled . | . . . . . . . . . . . . . . . . Allies | -11 -10 -10 -9 -9 -9 -8 -8 -8 -8 -6 -6 -5 -5 -5 -4 -------- Run | Yrd Mat Min Mat Min Exi Min Mat Sto Rec Fac DSF Fac Upp Upp Fac Total Allies 13 | . . 3 . . . . . 10 . . . . . . . Largest Group 10 | . . . 3 . . . . 10 5 . . . . . . Highest-Rated Group 173 | . . . 40 . . . . 173 93 . . . . . . Highest-Rated Ally 29 | . . . 16 . . . . 29 29 . . . . . . Total Orders . | . . . . . . . . . . . . . . . . Ally Attacks 114 | . . . 29 . . . . 65 20 . . . . . . Total Damage 1325 | . . . 226 . . . . 792 307 . . . . . . Kills 20 | . . . 7 . . . . 10 3 . . . . . . Allies Corrupted . | . . . . . . . . . . . . . . . . Allies Melted . | . . . . . . . . . . . . . . . . Intel | -11 -10 -10 -9 -9 -9 -8 -8 -8 -8 -6 -6 -5 -5 -5 -4 ------- Run | Yrd Mat Min Mat Min Exi Min Mat Sto Rec Fac DSF Fac Upp Upp Fac Active Infowar (turns) 5573 | 72 320 491 805 85 242 208 600 657 . 147 221 785 . . 940 Optics 1153 | . . . . . . . . . . 147 221 785 . . . Terrain 43 | 43 . . . . . . . . . . . . . . . Traps 1257 | . . . . . . . 600 657 . . . . . . . Seismic 2256 | 29 320 491 805 85 242 208 76 . . . . . . . . Cloaking 1298 | . . . . . . . . . . . . 386 . . 912 Jamming 114 | . . . . . . . . . . . . 114 . . . ECM 778 | . . . . . . . . . . . . . . . 778 Robot Analysis Total . | . . . . . . . . . . . . . . . . Derelict Logs Recovered 3 | . . 2 . . . . . . . . . . 1 . . Drone Launches . | . . . . . . . . . . . . . . . . Drone Recoveries . | . . . . . . . . . . . . . . . . Exploration | -11 -10 -10 -9 -9 -9 -8 -8 -8 -8 -6 -6 -5 -5 -5 -4 ------------- Run | Yrd Mat Min Mat Min Exi Min Mat Sto Rec Fac DSF Fac Upp Upp Fac Turns Passed 9670 | 186 320 491 845 85 246 208 600 774 1644 256 221 1334 322 265 1873 Spaces Moved 5496 | 111 189 350 589 95 258 194 413 474 690 123 109 613 261 193 834 Core 69 | 9 . . 1 . . . . . 2 . . . . . 57 Treads 738 | . . . . . . . . . 81 123 90 . . 7 437 Legs 1528 | 102 189 350 296 . . . . . 30 . . 221 . . 340 Wheels 2097 | . . . 292 95 258 194 413 474 371 . . . . . . Hover 1056 | . . . . . . . . . 198 . 19 392 261 186 . Flight 8 | . . . . . . . . . 8 . . . . . . Fastest Speed 50 | 50 120 120 90 90 90 105 105 105 105 206 89 89 98 82 50 Average Speed 123 | 114 120 120 105 90 91 105 108 110 180 206 196 123 105 112 109 Slowest Speed 950 | 120 120 120 300 90 105 105 120 120 950 206 206 161 119 149 184 Overloaded Moves . | . . . . . . . . . . . . . . . . Propulsion Burnouts . | . . . . . . . . . . . . . . . . Robots Hopped . | . . . . . . . . . . . . . . . . Potential Cave-ins . | . . . . . . . . . . . . . . . . Cave-ins Triggered . | . . . . . . . . . . . . . . . . Exploration Rate (%) 43 | 6 36 74 45 33 61 52 29 66 98 3 86 16 41 21 22 Regions Visited 15 Branch Regions 8 Pre-discovered Areas . | . . . . . . . . . . . . . . . . Known Exits Taken 4 | . . . 1 . . 1 . . . 1 . . 1 . . Unknown Exits Taken 10 | 1 1 1 . 1 1 . 1 1 1 . . 1 . 1 . Scrap Searched 5 | . . 1 . . . 2 . . . . . . 2 . . Spaces Dug 2 | . . . . . . . . . . . . 1 . . 1 Terrain Destroyed 165 | . . . 26 . . . 1 . 2 . . 38 . 9 89 Melee . | . . . . . . . . . . . . . . . . Projectile 37 | . . . . . . . 1 . 2 . . 9 . 9 16 AOE 127 | . . . 26 . . . . . . . . 29 . . 72 Terrain Rammed . | . . . . . . . . . . . . . . . . Walls Destroyed . | . . . . . . . . . . . . . . . . Machines Disabled . | . . . . . . . . . . . . . . . . Actions | -11 -10 -10 -9 -9 -9 -8 -8 -8 -8 -6 -6 -5 -5 -5 -4 --------- Run | Yrd Mat Min Mat Min Exi Min Mat Sto Rec Fac DSF Fac Upp Upp Fac Total 7743 | 141 242 390 706 94 269 198 502 690 1042 126 116 1109 293 214 1611 Wait 1569 | . 15 11 16 . . . 39 133 293 1 2 412 11 7 629 Move 5481 | 110 188 349 588 94 257 193 412 473 689 122 108 612 260 192 834 Hop . | . . . . . . . . . . . . . . . . Pick Up 87 | 8 7 2 7 . 1 5 6 18 4 2 . 9 1 1 16 Fast Attach 71 | 7 1 3 10 . 3 . 3 8 2 1 . 14 1 1 17 Attach 25 | . . . 2 . . . 3 1 4 . . 3 3 . 9 Detach 15 | . . . . . . . . 3 1 . . 7 3 . 1 Swap 26 | 1 2 2 7 . 2 . 3 6 . . . 1 . . 2 Drop 89 | 2 7 6 14 . 6 . 3 23 17 . . 6 2 . 3 Fire 338 | 13 21 17 59 . . . 31 24 32 . . 42 4 13 82 Melee 10 | . . . . . . . . . . . . . . . 10 Ram 11 | . . . 3 . . . 2 . . . . 3 . . 3 Kick 2 | . 1 . . . . . . . . . . . . . 1 Crush 4 | . . . . . . . . . . . . . . . 4 Escape Stasis 6 | . . . . . . . . . . . 6 . . . . Rewire 1 | . . . . . . . . 1 . . . . . . . Trap . | . . . . . . . . . . . . . . . . Miscellaneous 8 | . . . . . . . . . . . . . 8 . . Route ------- -11/Scrapyard -10/Materials (discovered 2 exits: *Mat / *Min) -10/Mines -9/Materials (discovered 5 exits: *Mat x3 / *Min x2) -9/Mines -9/Exiles -8/Mines -8/Materials (discovered 2 exits: [*Fac] / *Sto) -8/Storage (discovered 2 exits: [*Fac] / *Rec) -8/Recycling -6/Factory -6/DSF -5/Factory (discovered 2 exits: *Fac / *Upp) -5/Upper Caves -5/Upper Caves -4/Factory (discovered 1 exit: Gar) History --------- Turn | Location | Event 15 | -11/Scrapyard | Discovered new exit (range 16) 187 | -11/Scrapyard | Entered Materials 312 | -10/Materials | Build established: Mutant 370 | -10/Materials | Discovered new exit (range 16) 460 | -10/Materials | Discovered new exit (range 16) 507 | -10/Materials | Entered Mines 587 | -10/Mines | Learned 4 Materials zone layouts 625 | -10/Mines | Learned 4 Materials zone layouts 648 | -10/Mines | Found the Drone Emporium 942 | -10/Mines | Joined a pair of Derelicts in attacking an 0b10 outpost 985 | -10/Mines | Discovered new exit (range 6) 995 | -10/Mines | Assisted by bots powering up and referring to "LRC-V3" 998 | -10/Mines | Entered Materials 998 | -9/Materials | Accompanied by 3 allies 998 | -9/Materials | Evolved 2 slots: Propulsion x1, Utility x1 999 | -9/Materials | Identified exit to Mines 999 | -9/Materials | Identified exit to Materials 1085 | -9/Materials | Build established: Scavenger-Mutant 1245 | -9/Materials | Discovered exit to Mines (range 6) 1442 | -9/Materials | Discovered exit to Materials (range 5) 1843 | -9/Materials | Entered Mines 1925 | -9/Mines | Deemed a non-threat by the Exiles lab entrance 1925 | -9/Mines | Discovered new exit (range 5) 1928 | -9/Mines | Entered Exiles 1950 | -9/Exiles | Met 8R-AWN 1964 | -9/Exiles | Met EX-HEX 1992 | -9/Exiles | Met EX-BIN 2003 | -9/Exiles | Aligned with FarCom system 2004 | -9/Exiles | Given EX-Vault access code 2025 | -9/Exiles | Opened EX-Vault 2035 | -9/Exiles | Found Firepult 2068 | -9/Exiles | Warned to stay clear of 0b10 Research branches 2093 | -9/Exiles | Met EX-DEC 2166 | -9/Exiles | Discovered new exit (range 10) 2174 | -9/Exiles | Left Exiles lab with Firepult 2174 | -9/Exiles | Entered Mines 2368 | -8/Mines | Discovered exit to Materials (range 14) 2382 | -8/Mines | Entered Materials 2382 | -8/Materials | Evolved 2 slots: Utility x2 2443 | -8/Materials | Build established: Mutant 2552 | -8/Materials | Discovered new exit (range 6) 2787 | -8/Materials | Repaired Arm. Wheel 2828 | -8/Materials | Discovered new exit (range 16) 2982 | -8/Materials | Entered Storage 3041 | -8/Storage | Repaired Imp. Light Armor Plating 3092 | -8/Storage | Repaired Lgt. Angular Momentum Engine 3260 | -8/Storage | Assisted by bots powering up and referring to "LRC-V3" 3558 | -8/Storage | Build established: Commander-Mutant 3602 | -8/Storage | Discovered new exit (range 5) 3736 | -8/Storage | Used back door to open Recycling access 3736 | -8/Storage | Discovered new exit (range 4) 3756 | -8/Storage | Entered Recycling 3756 | -8/Recycling | Accompanied by 5 allies 4178 | -8/Recycling | Scanned before Scraplab entrance 4192 | -8/Recycling | Entered Scraplab 4204 | -8/Recycling | Angered Scraplab inhabitants 4205 | -8/Recycling | Found Prototype Device 4205 | -8/Recycling | Identified Scrap Engine 4247 | -8/Recycling | Lost 4 allies 4259 | -8/Recycling | Core integrity fell below 50% 4264 | -8/Recycling | Lost 6 parts (1p3n2u) 4324 | -8/Recycling | Lost 3 parts (1u2w) 4750 | -8/Recycling | Build established: Construct 5098 | -8/Recycling | Discovered new exit (range 16) 5400 | -8/Recycling | Entered Factory 5400 | -6/Factory | Evolved 4 slots: Propulsion x1, Utility x1, Weapon x2 5654 | -6/Factory | Identified exit to DSF 5656 | -6/Factory | Entered DSF 5728 | -6/DSF | Additional patrols routed to DSF 5848 | -6/DSF | Discovered new exit (range 14) 5877 | -6/DSF | Entered Factory 5877 | -5/Factory | Evolved 2 slots: Power x1, Utility x1 5907 | -5/Factory | Lost 3 parts (1p2w) 6627 | -5/Factory | Lost 3 parts (1u2w) 7037 | -5/Factory | System corruption reached 10% 7124 | -5/Factory | Discovered new exit (range 15) 7203 | -5/Factory | Discovered new exit (range 16) 7211 | -5/Factory | Entered Upper Caves 7310 | -5/Upper Caves | Found Alien Artifact 7317 | -5/Upper Caves | Identified Dimensional Node Initializer 7317 | -5/Upper Caves | Initialized slip node 7352 | -5/Upper Caves | Encountered a Warlord checkpoint 7520 | -5/Upper Caves | Identified exit to Upper Caves 7533 | -5/Upper Caves | Entered another Upper Caves area 7737 | -5/Upper Caves | Discovered new exit (range 7) 7748 | -5/Upper Caves | Attacked by a delusional Derelict stockpiling parts 7798 | -5/Upper Caves | Entered Factory 7798 | -4/Factory | Evolved 2 slots: Power x1, Utility x1 7869 | -4/Factory | Identified exit to Garrison 7986 | -4/Factory | Repaired Hcp. Storage Unit 8187 | -4/Factory | Lost 4 parts (1p1u2w) 8589 | -4/Factory | Build established: Scavenger-Skirmisher 8704 | -4/Factory | System corruption reached 10% 8913 | -4/Factory | Lost 3 parts (1p1u1w) 9243 | -4/Factory | Lost 8 parts (2p4u2w) 9511 | -4/Factory | Build established: Skirmisher 9554 | -4/Factory | System corruption reached 30% 9581 | -4/Factory | Core integrity fell below 50% 9632 | -4/Factory | Lost 12 parts (1p3n4u4w) 9667 | -4/Factory | Core integrity fell below 20% 9671 | -4/Factory | Destroyed by Y-64 Sentinel with KE Penetrator Last Messages --------------- 09647_ Smartbomb Launcher destroyed. 09648_ The unstable cave ceiling collapses. 09650_ Slug penetrates Wall. 09650_ Slug penetrates Terminal. 09650_ Terminal disabled. 09650_ Slug penetrates Wall. 09650_ Myomer-Armored Exoskeleton destroyed. 09655_ Slug penetrates Wall. 09657_ LR=4M RD7601Y<26BHV CV02RU 09657_ Penetrated by Slug. 09657_ Authchip [Weapon] destroyed. 09666_ Penetrated by Slug. 09668_ X-72 Disruptor destroyed. 09668_ Penetrated by Slug. 09668_ Slug penetrates Wall. 09668_ Penetrated by Slug. 09669_ Acquired 51 matter. 09670_ Slug penetrates Wall. 09670_ Slammed into X-72 Disruptor. 09670_ Penetrated by Slug. Map ----- +----------------------------------------------------+ | ?????????????????????????????????? | | ?????????????????????????????????? | | ?????#???????????????????????????? | | ??? #???????????????????????????? | | ?? #???????????????????????????? | | # #????########??????????????? | | #????# #??????????????? | | #????# ###########????? | | #????# # #????? | | # ?????# # #????? | | ???????????# # #????? | | #######????# # #????? | | ?????# + T #????? | | """"??????# # #????? | | """""?????# # #????? | | """""?????# # #????? | | """""""???# # #????? | | # ### ###????? | | ############ #?# ######## | | ???????????# #?# # # | | ? ?????????#######??# # # | | ??????????????????# # """ # | | ???????????????# # """ # | | "" ""???????????????# * !# """ # | | "" ""???????????????# # "" # | | "" ""???????????????# @# "" # | | ????????????????# ^hx # | | "" "????????????????# # "" # | | "" ""???????????????# #h"" # | | "" ""???????????????# # "T # | | ?????######## # "" # | | #########????# # " # | | %! ######### w # # | | !* " """ """YY ### #### | | " "######## """ T" # ??? | | """"# ! # """ """ # ??? | | """"# # "" ## ?? | | """"# # "" # ## | | """"# ! # *% # | | """"# # ! # | | # # % % # | | ###### + | | ?????# "" # # ! # | | ?????# "" # ### ] # | | ?????# """ # #?# # | | ?????#! """ # ###??# ### | | ?????# """ # #????? #?? | | ?????# # #????? "" #?? | | ?????######## #???? Y" #?? | | ????????????# #????"" ?? ??? | +----------------------------------------------------+ Best States ------------- Heat Dissipation 73 Coolant Potential 80 Energy Generation 51 Energy Capacity 445 Matter Stores 300 Matter Capacity 300 Sight Range 22 Terrain Scan Range 16 Terrain Scan Density 10 ECM Strength 2 Jamming Range 14 Cloak Strength 3 Power Amplification 20 Armor Coverage 825 Power Shielding 33 Propulsion Shielding 66 Weapon Shielding 66 Evasion (%) 55 Target Analysis 6 Recoil Reduction 4 Energy Filtering 30 Offensive Hacking 10 Authchip Count 3 Item Schematics ----------------- None Robot Schematics ------------------ None Fabricated ------------ Nothing Repaired ---------- Arm. Wheel | 4% | -8/Materials Imp. Light Armor Plating | 17% | -8/Storage Lgt. Angular Momentum Engine | 63% | -8/Storage Hcp. Storage Unit | 19% | -4/Factory Studied --------- Hvy. Assault Rifle | -9/Materials | Hacked Lgt. Angular Momentum Engine | -5/Factory | Hacked Alien Tech Used ----------------- Dimensional Node Initializer Achievements -------------- Alien Tech Thread The Needle Around The Corner Challenges ------------ None Game ------ Seed DeuteriumCatalystDetonator Manual? 0 Play Time 01:45:52 Cumulative 59.0 hours Start 2025.12.27 @ 18:38:09 End 2026.01.05 @ 16:32:34 Sessions 7 Manual Loads 0 Difficulty Rogue Special Mode None Game No. 59 Rogue 59 Adventurer 0 Explorer 0 Win Type - Total 1 Types 1/0/0/0/0/0/0/0/0/0 Lore% 23 Gallery% 42 Achievement% 34 Wizard Run 0 Options --------- Layout 1 ASCII 0 Keyboard 0 Movement Mouse Keybinds 0 Fullscreen 1 Font 24/Smallcaps Map View 50x35 Zoom Use 0% Tactical HUD 1 Map Filters NONE Filters NONE Steam 1 RUN: 2fdb14eb-db28-4f05-affd-61cdcbab48ef